fUST/lending_fUST_20260113
["ID","MTS","AMOUNT","RATE_DAILY","PERIOD"]
[401489369,1768265440025,-500.0,0.00013699,2]
[401489370,1768265440036,-500.0,0.00013699,2]
[401489372,1768265440045,-500.0,0.00013699,2]
[401489375,1768265440055,-500.0,0.00013699,2]
[401489377,1768265440064,-500.0,0.00013699,2]
[401489378,1768265440074,-500.0,0.00013699,2]
[401489381,1768265440083,-500.0,0.00013699,2]
[401489382,1768265440093,-500.0,0.00013699,2]
[401489384,1768265440103,-500.0,0.00013699,2]
[401489386,1768265440112,-159.64533136,0.00013699,2]
[401489388,1768265440121,-500.0,0.00013699,2]
[401489391,1768265440130,-366.95119537,0.00013699,2]
[401489393,1768265440140,-313.20652716,0.00013699,2]
[401489394,1768265440149,-296.07308979,0.00013699,2]
[401489396,1768265440158,-500.0,0.00013699,2]
[401489398,1768265440167,-500.0,0.00013699,2]
[401489400,1768265440176,-501.55614282,0.00013699,2]
[401489402,1768265440186,-500.0,0.00013699,2]
[401489405,1768265440195,-500.0,0.00013699,2]
[401489406,1768265440204,-500.0,0.00013699,2]
[401489408,1768265440213,-500.0,0.00013699,2]
[401489410,1768265440223,-500.0,0.00013699,2]
[401489412,1768265440232,-500.0,0.00013699,2]
[401489414,1768265440241,-1000.0,0.00013821,2]
[401489417,1768265440254,-1000.0,0.00013821,2]
[401489419,1768265440263,-303.88205907,0.00013821,2]
[401489421,1768265440272,-798.59280651,0.00013821,2]
[401489423,1768265440282,-1000.0,0.00013821,2]
[401489424,1768265440295,-958.38483251,0.00013821,2]
[401489426,1768265440304,-1000.0,0.00013821,2]
[401489428,1768265440313,-1000.0,0.00013821,2]
[401489430,1768265440323,-1000.0,0.00013821,2]
[401489432,1768265440334,-1000.0,0.00013821,2]
[401489434,1768265440344,-1113.91769968,0.00013821,2]
[401489436,1768265440354,-1000.0,0.00013821,2]
[401489438,1768265440366,-1000.0,0.00013821,2]
[401489440,1768265440376,-1000.0,0.00013821,2]
[401489442,1768265440386,-1000.0,0.00013821,2]
[401489444,1768265440395,-290.33203274,0.00013821,2]
[401489446,1768265440404,-1000.0,0.00013821,2]
[401489448,1768265440413,-1000.0,0.00013821,2]
[401489450,1768265440422,-1000.0,0.00013821,2]
[401489452,1768265440432,-1000.0,0.00013821,2]
[401489454,1768265440441,-1000.0,0.00013821,2]
[401489456,1768265440451,-1000.0,0.00013821,2]
[401489458,1768265440460,-1000.0,0.00013821,2]
[401489460,1768265440469,-1000.0,0.00013821,2]
[401489462,1768265440479,-1000.0,0.00013821,2]
[401489463,1768265440488,-1000.0,0.00013821,2]
[401489464,1768265440496,-1000.0,0.00013821,2]
[401489465,1768265440505,-332.40668052,0.00013821,2]
[401489466,1768265440514,-1000.0,0.00013821,2]
[401489467,1768265440523,-1000.0,0.00013821,2]
[401489468,1768265440532,-1000.0,0.00013821,2]
[401489469,1768265440540,-1000.0,0.00013821,2]
[401489470,1768265440549,-1000.0,0.00013821,2]
[401489471,1768265440558,-1000.0,0.00013821,2]
[401489472,1768265440567,-680.33880903,0.00013821,2]
[401489473,1768265440577,-1000.0,0.00013821,2]
[401489474,1768265440586,-1000.0,0.00013821,2]
[401489475,1768265440595,-294.20360383,0.00013973,2]
[401489476,1768265440604,-864.0,0.00014101,2]
[401489477,1768265440613,-600.0,0.00014221,2]
[401489478,1768265440622,-1000.512985,0.00014247,2]
[401489479,1768265440630,-1000.0,0.00014247,2]
[401489480,1768265440639,-500.0,0.00014247,2]
[401489481,1768265440648,-875.76793412,0.00014247,2]
[401489482,1768265440658,-1000.0,0.00014247,2]
[401489483,1768265440667,-1000.0,0.00014247,2]
[401489484,1768265440677,-500.93038909,0.00014247,2]
[401489485,1768265440687,-250.0,0.00014247,2]
[401489486,1768265440696,-1000.0,0.00014247,2]
[401489487,1768265440706,-1000.0,0.00014247,2]
[401489488,1768265440715,-1000.0,0.00014247,2]
[401489489,1768265440725,-1000.0,0.00014247,2]
[401489490,1768265440734,-1002.38932755,0.00014247,2]
[401489491,1768265440744,-1002.56553603,0.00014247,2]
[401489492,1768265440754,-1017.77857831,0.00014247,2]
[401489493,1768265440763,-276.29994154,0.00014247,2]
[401489494,1768265440773,-1000.0,0.00014247,2]
[401489495,1768265440782,-501.52224721,0.00014247,2]
[401489496,1768265440792,-1000.0,0.00014247,2]
[401489497,1768265440801,-999.83703447,0.00014247,2]
[401489498,1768265440811,-1000.0,0.00014247,2]
[401489499,1768265440820,-1000.0,0.00014247,2]
[401489500,1768265440830,-1029.61129365,0.00014247,2]
[401489501,1768265440839,-1000.0,0.00014247,2]
[401489502,1768265440848,-1000.0,0.00014247,2]
[401489503,1768265440858,-1000.0,0.00014247,2]
[401489506,1768265440867,-1000.0,0.00014247,2]
[401489508,1768265440876,-1000.0,0.00014247,2]
[401489509,1768265440886,-581.34216933,0.00014247,2]
[401489510,1768265440895,-1000.0,0.00014247,2]
[401489511,1768265440904,-1000.0,0.00014247,2]
[401489512,1768265440914,-1000.0,0.00014247,2]
[401489513,1768265440923,-353.02410941,0.00014247,2]
[401489514,1768265440932,-1000.0,0.00014247,2]
[401489515,1768265440942,-1000.0,0.00014247,2]
[401489516,1768265440951,-1000.0,0.00014247,2]
[401489517,1768265440961,-1000.0,0.00014247,2]
[401489518,1768265440971,-1000.0,0.00014247,2]
[401489519,1768265440980,-1000.0,0.00014247,2]
[401489520,1768265440989,-1000.0,0.00014247,2]
[401489521,1768265440999,-1000.0,0.00014247,2]
[401489522,1768265441008,-1000.0,0.00014247,2]
[401489523,1768265441018,-1000.0,0.00014247,2]
[401489524,1768265441027,-1014.57441802,0.00014247,2]
[401489525,1768265441037,-1000.0,0.00014247,2]
[401489526,1768265441046,-646.68328603,0.00014247,2]
[401489527,1768265441055,-1000.0,0.00014247,2]
[401489529,1768265441064,-1000.0,0.00014247,2]
[401489531,1768265441073,-1000.0,0.00014247,2]
[401489533,1768265441082,-1000.0,0.00014247,2]
[401489535,1768265441091,-1006.00253074,0.00014247,2]
[401489537,1768265441101,-1138.41119879,0.00014247,2]
[401489539,1768265441110,-1000.0,0.00014247,2]
[401489541,1768265441119,-1000.0,0.00014247,2]
[401489542,1768265441128,-346.05518507,0.00014247,2]
[401489543,1768265441137,-1000.0,0.00014247,2]
[401489544,1768265441146,-1000.0,0.00014247,2]
[401489545,1768265441155,-1000.0,0.00014247,2]
[401489547,1768265441164,-1121.35319303,0.00014368,2]
[401489549,1768265441173,-504.59320272,0.00014368,2]
[401489551,1768265441183,-1500.0,0.00014368,2]
[401489559,1768265441283,-763.96834089,0.00014368,2]
[401489560,1768265441294,-500.0,0.00014368,2]
[401489561,1768265441303,-1500.0,0.00014368,2]
[401489562,1768265441313,-1500.0,0.00014368,2]
[401489563,1768265441323,-1000.0,0.00014368,2]
[401489564,1768265441333,-1500.0,0.00014368,2]
[401489565,1768265441343,-1500.0,0.00014368,2]
[401489566,1768265441352,-423.32811707,0.00014368,2]
[401489567,1768265441361,-1500.0,0.00014368,2]
[401489568,1768265441372,-1500.0,0.00014368,2]
[401489569,1768265441381,-1500.0,0.00014368,2]
[401489570,1768265441390,-1500.0,0.00014368,2]
[401489571,1768265441400,-401.64301006,0.00014368,2]
[401489572,1768265441409,-1485.3091038,0.00014368,2]
[401489573,1768265441418,-1177.20505665,0.00014368,2]
[401489574,1768265441427,-1500.0,0.00014368,2]
[401489575,1768265441436,-1603.18109463,0.00014368,2]
[401489576,1768265441446,-1500.0,0.00014368,2]
[401489577,1768265441455,-1502.33157316,0.00014368,2]
[401489578,1768265441464,-1500.0,0.00014368,2]
[401489579,1768265441474,-1500.0,0.00014368,2]
[401489580,1768265441483,-500.80134157,0.00014368,2]
[401489581,1768265441492,-1500.0,0.00014368,2]
[401489582,1768265441501,-1000.0,0.00014368,2]
[401489583,1768265441510,-1500.0,0.00014368,2]
[401489584,1768265441519,-5000.0,0.0001451,2]
[401489585,1768265441528,-100000.0,0.0001459,2]
[401489586,1768265441537,-500.0,0.00014626,2]
[401489587,1768265441546,-500.0,0.00014747,2]
[401489588,1768265441554,-500.0,0.00014747,2]
[401489589,1768265441563,-500.0,0.00014747,2]
[401489590,1768265441572,-500.0,0.00014747,2]
[401489591,1768265441581,-500.0,0.00014747,2]
[401489592,1768265441591,-500.0,0.00014747,2]
[401489593,1768265441600,-500.0,0.00014747,2]
[401489594,1768265441610,-500.0,0.00014747,2]
[401489595,1768265441620,-250.0,0.00014748,2]
[401489596,1768265441629,-500.0,0.00014763,2]
[401489597,1768265441639,-900.0,0.00014768,2]
[401489598,1768265441648,-1261.7914728,0.00014774,2]
[401489599,1768265441657,-68520.2544233,0.00014774,2]
[401489600,1768265441667,-15118.3116999,0.00014774,2]
[401489601,1768265441676,-1210.6540617,0.00014774,2]
[401489602,1768265441686,-1500.0,0.00014795,2]
[401489603,1768265441695,-1500.0,0.00014795,2]
[401489604,1768265441704,-1500.0,0.00014795,2]
[401489605,1768265441714,-500.0,0.00014795,2]
[401489606,1768265441725,-1121.58832465,0.00014795,2]
[401489607,1768265441734,-675.05887209,0.00014795,2]
[401489608,1768265441744,-1500.0,0.00014795,2]
[401489609,1768265441754,-1000.0,0.00014795,2]
[401489610,1768265441763,-575.12204215,0.00014795,2]
[401489611,1768265441772,-158.4999436,0.00014795,2]
[401489612,1768265441781,-1000.0,0.00014795,2]
[401489613,1768265441790,-1500.0,0.00014795,2]
[401489614,1768265441800,-1500.0,0.00014795,2]
[401489615,1768265441809,-1500.0,0.00014795,2]
[401489616,1768265441818,-1500.0,0.00014795,2]
[401489617,1768265441828,-1500.0,0.00014795,2]
[401489618,1768265441838,-964.41428729,0.00014795,2]
[401489619,1768265441847,-1001.21372141,0.00014795,2]
[401489620,1768265441856,-1500.0,0.00014795,2]
[401489621,1768265441866,-500.0,0.00014795,2]
[401489622,1768265441875,-1500.0,0.00014795,2]
[401489623,1768265441884,-1500.0,0.00014795,2]
[401489624,1768265441894,-1500.0,0.00014795,2]
[401489625,1768265441904,-1500.0,0.00014795,2]
[401489626,1768265441914,-710.84440634,0.00014795,2]
[401489627,1768265441923,-500.0,0.00014795,2]
[401489628,1768265441932,-1500.0,0.00014795,2]
[401489629,1768265441942,-1509.97698878,0.00014795,2]
[401489630,1768265441951,-1500.0,0.00014795,2]
[401489631,1768265441960,-1500.0,0.00014795,2]
[401489632,1768265441969,-1500.0,0.00014795,2]
[401489633,1768265441979,-1500.0,0.00014795,2]
[401489634,1768265441988,-1000.0,0.000148,2]
[401489635,1768265441997,-823.0,0.00014856,2]
[401489636,1768265442007,-500.0,0.000149,2]
[401489637,1768265442015,-500.0,0.00014916,2]
[401489638,1768265442025,-2000.0,0.00014916,2]
[401489639,1768265442034,-155.72124395,0.00014916,2]
[401489640,1768265442044,-2000.0,0.00014916,2]
[401489641,1768265442053,-1466.62413338,0.00014916,2]
[401489642,1768265442063,-500.0,0.00014916,2]
[401489643,1768265442074,-2000.0,0.00014916,2]
[401489644,1768265442083,-2000.0,0.00014916,2]
[401489645,1768265442093,-500.0,0.00014916,2]
[401489646,1768265442103,-2000.0,0.00014916,2]
[401489647,1768265442112,-2000.0,0.00014916,2]
[401489648,1768265442121,-2000.0,0.00014916,2]
[401489650,1768265442130,-2000.0,0.00014916,2]
[401489652,1768265442139,-1113.36442406,0.00014916,2]
[401489654,1768265442148,-2000.0,0.00014916,2]
[401489655,1768265442158,-161.32015771,0.00015037,2]
[401489656,1768265442167,-406.57205607,0.00015162,2]
[401489658,1768265442176,-2809.693971,0.00015217,2]
[401489660,1768265442186,-300.0,0.00015316,2]
[401489661,1768265442195,-1000.0,0.00015342,2]
[401489663,1768265442205,-1000.0,0.00015342,2]
[401489665,1768265442214,-1000.0,0.00015342,2]
[401489667,1768265442223,-1026.41190133,0.00015342,2]
[401489669,1768265442232,-507.57819343,0.00015342,2]
[401489671,1768265442242,-737.22168392,0.00015342,2]
[401489673,1768265442252,-1500.0,0.00015342,2]
[401489675,1768265442261,-500.0,0.00015342,2]
[401489677,1768265442271,-2000.0,0.00015342,2]
[401489679,1768265442280,-2500.0,0.00015464,2]
[401489681,1768265442289,-1000.0,0.00015464,2]
[401489683,1768265442301,-2500.0,0.00015464,2]
[401489685,1768265442310,-374.68815725,0.00015464,2]
[401489687,1768265442319,-1000.0,0.00015464,2]
[401489689,1768265442329,-2021.14150026,0.00015464,2]
[401489690,1768265442339,-2500.0,0.00015464,2]
[401489691,1768265442348,-1000.0,0.00015464,2]
[401489692,1768265442357,-2500.0,0.00015464,2]
[401489693,1768265442368,-1000.0,0.00015511,2]
[401489694,1768265442377,-6095.52266173,0.00015559,2]
[401489695,1768265442387,-2500.0,0.0001589,2]
[401489696,1768265442396,-500.0,0.00016012,2]
[401489697,1768265442405,-2000.0,0.00016012,2]
[401489698,1768265442415,-3000.0,0.00016012,2]
[401489699,1768265442424,-3000.0,0.00016012,2]
[401489700,1768265442434,-1152.0,0.00016321,2]
[401489701,1768265442443,-1210.6540617,0.00016354,2]
[401489702,1768265442453,-500.0,0.00016438,2]
[401489704,1768265442462,-394.31480662,0.00016438,2]
[401489706,1768265442472,-3000.0,0.00016438,2]
[401489708,1768265442481,-500.0,0.0001656,2]
[401489710,1768265442490,-2500.0,0.0001656,2]
[401489712,1768265442499,-1041.66666667,0.00016653,2]
[401489714,1768265442508,-158.0,0.000169,2]
[401489716,1768265442517,-1012.33286536,0.00016986,2]
[401489717,1768265442527,-81746.64048322,0.0001701,3]
[401489720,1768265442536,-1000.0,0.00017062,2]
[401489721,1768265442546,-244.0,0.00017062,2]
[401489723,1768265442555,-228.70879455,0.00017136,7]
[401489725,1768265442566,-460.38306349,0.00017162,2]
[401489728,1768265442577,-5000.0,0.00017412,2]
[401489730,1768265442586,-151.0,0.00017449,2]
[401489731,1768265442595,-15288.9353429,0.00017908,2]
[401489734,1768265442605,-3373.3513107,0.00017908,2]
[401489736,1768265442614,-1613.0,0.00017932,2]
[401489738,1768265442624,-1210.6540617,0.00017933,2]
[401489739,1768265442633,-151.0,0.00017955,2]
[401489741,1768265442642,-75067.17408524,0.00018,2]
[401489743,1768265442651,-41693.40887456,0.00018,5]
[401489745,1768265442660,-151.0,0.00018,2]
[401489747,1768265442669,-151.0,0.00018,2]
[401489749,1768265442679,-170.678359,0.00018,2]
[401489751,1768265442688,-170.678359,0.00018,2]
[401489753,1768265442697,-170.678359,0.00018,2]
[401489755,1768265442706,-170.678359,0.00018,2]
[401489757,1768265442715,-728.0,0.0001835,2]
[401489759,1768265442725,-151.0,0.00018461,2]
[401489761,1768265442736,-151.0,0.00018606,2]
[401489763,1768265442746,-151.0,0.00018606,2]
[401489765,1768265442756,-2398.4119403,0.00018606,2]
[401489767,1768265442778,-181.08010149,0.00018606,2]
[401489769,1768265442796,-187.78006525,0.00018606,2]
[401489771,1768265442806,-194.72792766,0.00018606,2]
[401489773,1768265442815,-201.93286099,0.00018606,2]
[401489775,1768265442824,-209.40437684,0.00018606,2]
[401489777,1768265442833,-217.15233878,0.00018606,2]
[401489779,1768265442843,-225.18697532,0.00018606,2]
[401489781,1768265442852,-233.51889341,0.00018606,2]
[401489783,1768265442862,-242.15909246,0.00018606,2]
[401489785,1768265442872,-251.11897888,0.00018606,2]
[401489788,1768265442882,-260.4103811,0.00018606,2]
[401489790,1768265442891,-270.0455652,0.00018606,2]
[401489792,1768265442901,-280.03725112,0.00018606,2]
[401489794,1768265442910,-496.47127164,0.00018606,2]
[401489796,1768265442920,-290.39862941,0.00018606,2]
[401489798,1768265442929,-301.1433787,0.00018606,2]
[401489800,1768265442938,-3411.4225915,0.00018607,2]
[401489801,1768265442948,-752.6964182,0.00018607,2]
[401489803,1768265442957,-728.0,0.0001867,2]
[401489805,1768265442966,-1000.0,0.00018768,2]
[401489808,1768265442975,-492.0,0.00018768,2]
[401489810,1768265442986,-728.0,0.00018898,2]
[401489811,1768265442995,-303.10001603,0.000189,2]
[401489814,1768265443004,-157.5,0.000189,2]
[401489815,1768265443013,-151.0,0.00018966,2]
[401489817,1768265443022,-728.0,0.0001899,2]
[401489819,1768265443031,-728.0,0.0001899,2]
[401489821,1768265443041,-151.0,0.0001899,2]
[401489823,1768265443049,-728.0,0.00019051,2]
[401489825,1768265443058,-6095.52266173,0.00019054,2]
[401489827,1768265443067,-268.88693948,0.00019076,2]
[401489829,1768265443077,-303.10001603,0.00019089,2]
[401489831,1768265443088,-2487.15318209,0.00019154,2]
[401489833,1768265443097,-514.84070869,0.00019154,2]
[401489835,1768265443106,-514.19407091,0.00019162,2]
[401489837,1768265443115,-507127.55301876,0.00019176,2]
[401489839,1768265443124,-197.225983,0.00019176,2]
[401489841,1768265443133,-151.0,0.00019176,2]
[401489843,1768265443142,-151.0,0.00019176,2]
[401489845,1768265443152,-170.678359,0.00019176,2]
[401489847,1768265443164,-170.678359,0.00019176,2]
[401489849,1768265443173,-170.678359,0.00019176,2]
[401489851,1768265443183,-170.678359,0.00019176,2]
[401489853,1768265443193,-151.0,0.00019176,2]
[401489856,1768265443202,-352.88,0.00019178,2]
[401489859,1768265443210,-17700.54,0.000192,2]
[401489862,1768265443220,-159.91,0.000192,2]
[401489865,1768265443229,-156.51,0.000192,2]
[401489868,1768265443238,-3168.12,0.000192,2]
[401489871,1768265443251,-728.0,0.0001924,2]
[401489873,1768265443260,-303.10001603,0.00019278,2]
[401489875,1768265443269,-728.0,0.00019371,2]
[401489877,1768265443278,-728.0,0.00019371,2]
[401489879,1768265443287,-728.0,0.00019417,2]
[401489881,1768265443300,-160.0,0.00019442,2]
[401489883,1768265443309,-303.10001603,0.00019467,2]
[401489885,1768265443318,-151.0,0.00019472,2]
[401489887,1768265443327,-1210.6540617,0.00019513,2]
[401489889,1768265443337,-728.0,0.0001956,2]
[401489891,1768265443346,-22054.27741379,0.0001958,3]
[401489893,1768265443355,-728.0,0.00019624,2]
[401489894,1768265443365,-303.10001603,0.00019656,2]
[401489896,1768265443375,-728.0,0.00019661,2]
[401489898,1768265443384,-1366.0,0.00019682,2]
[401489901,1768265443394,-2147.0,0.00019682,2]
[401489902,1768265443403,-417.0,0.00019682,2]
[401489904,1768265443413,-417.0,0.00019682,2]
[401489906,1768265443422,-715.0,0.00019682,2]
[401489909,1768265443431,-728.0,0.00019691,2]
[401489911,1768265443441,-2258.0,0.00019701,2]
[401489913,1768265443450,-1896.73292142,0.00019702,2]
[401489915,1768265443459,-2579.17784983,0.00019702,2]
[401489917,1768265443468,-533.88981491,0.00019702,2]
[401489919,1768265443478,-250.0,0.00019726,2]
[401489920,1768265443487,-728.0,0.00019737,2]
[401489922,1768265443497,-728.0,0.00019762,2]
[401489924,1768265443506,-454.65002405,0.00019845,4]
[401489926,1768265443515,-728.0,0.0001988,2]
[401489928,1768265443524,-136329.54267561,0.0001988,2]
[401490142,1768265445861,-329.28962388,0.00013698,2]
[401490144,1768265445870,-516.2601635,0.00015233,2]
[401490212,1768265446515,-2293.4338075,0.00015233,2]
[401490214,1768265446524,-281.0,0.000199,2]
[401490216,1768265446534,-728.0,0.00019916,2]
[401490218,1768265446544,-151.0,0.00019977,2]
[401490220,1768265446554,-880.5597815,0.0002,2]
[401490222,1768265446565,-418.31065927,0.0002,2]
[401491042,1768265756423,500.0,0.00030136,120]
[401491043,1768265756588,500.0,0.00030136,120]
[401491044,1768265757254,500.0,0.00030136,120]
[401491045,1768265757710,500.0,0.00030136,120]
[401491046,1768265758016,500.0,0.00030136,120]
[401491047,1768265758426,552.9726294,0.00030136,120]
[401491077,1768266631825,-1638.6854377,0.00011158,2]
[401491078,1768266631835,-577.0,0.00011158,2]
[401491079,1768266631846,-296.66394953,0.00011271,2]
[401491080,1768266631855,-500.0,0.00011789,2]
[401491081,1768266631865,-500.0,0.00011926,2]
[401491082,1768266631874,-78897.21994617,0.00011963,2]
[401491083,1768266631886,-294.49516258,0.00011963,2]
[401491085,1768266631897,-8899.03047921,0.00011963,2]
[401491098,1768266638027,-911909.25441204,0.00011963,2]
[401491099,1768266638037,-300.0,0.00012062,2]
[401491100,1768266638046,-50000.0,0.00012063,2]
[401491101,1768266638056,-500.0,0.00012063,2]
[401491102,1768266638066,-500.0,0.00012063,2]
[401491103,1768266638076,-500.0,0.00012063,2]
[401491104,1768266638085,-500.0,0.00012063,2]
[401491105,1768266638095,-500.0,0.00012063,2]
[401491106,1768266638104,-500.0,0.00012063,2]
[401491107,1768266638114,-500.0,0.00012063,2]
[401491108,1768266638123,-500.0,0.00012063,2]
[401491109,1768266638132,-260.75264044,0.00012063,2]
[401491110,1768266638142,-500.0,0.00012063,2]
[401491111,1768266638151,-153.84355875,0.00012063,2]
[401491112,1768266638161,-500.0,0.00012063,2]
[401491113,1768266638169,-500.0,0.00012063,2]
[401491114,1768266638180,-500.0,0.00012063,2]
[401491115,1768266638189,-500.0,0.00012063,2]
[401491116,1768266638199,-500.0,0.00012063,2]
[401491117,1768266638209,-500.0,0.00012063,2]
[401491118,1768266638218,-500.0,0.00012063,2]
[401491119,1768266638228,-500.0,0.00012063,2]
[401491120,1768266638237,-500.0,0.00012063,2]
[401491121,1768266638247,-500.0,0.00012063,2]
[401491122,1768266638256,-500.0,0.00012063,2]
[401491123,1768266638266,-500.0,0.00012063,2]
[401491124,1768266638275,-500.0,0.00012063,2]
[401491125,1768266638284,-500.0,0.00012063,2]
[401491126,1768266638293,-500.0,0.00012063,2]
[401491127,1768266638303,-500.0,0.00012063,2]
[401491128,1768266638312,-500.0,0.00012063,2]
[401491129,1768266638322,-500.0,0.00012063,2]
[401491130,1768266638331,-500.0,0.00012063,2]
[401491131,1768266638341,-490.04435365,0.00012063,2]
[401491132,1768266638351,-500.0,0.00012063,2]
[401491133,1768266638361,-500.0,0.00012063,2]
[401491134,1768266638370,-454.74412426,0.00012063,2]
[401491135,1768266638379,-500.0,0.00012063,2]
[401491136,1768266638388,-500.0,0.00012063,2]
[401491137,1768266638398,-500.0,0.00012063,2]
[401491138,1768266638407,-500.0,0.00012063,2]
[401491139,1768266638418,-500.0,0.00012063,2]
[401491140,1768266638428,-500.0,0.00012063,2]
[401491141,1768266638437,-500.0,0.00012063,2]
[401491142,1768266638447,-500.0,0.00012063,2]
[401491143,1768266638457,-500.0,0.00012063,2]
[401491144,1768266638466,-164.56483833,0.00012063,2]
[401491145,1768266638475,-500.0,0.00012063,2]
[401491146,1768266638485,-500.0,0.00012063,2]
[401491147,1768266638494,-500.0,0.00012063,2]
[401491148,1768266638504,-500.0,0.00012063,2]
[401491149,1768266638514,-500.0,0.00012063,2]
[401491150,1768266638524,-500.0,0.00012063,2]
[401491151,1768266638534,-500.0,0.00012063,2]
[401491152,1768266638543,-500.0,0.00012063,2]
[401491153,1768266638553,-500.0,0.00012063,2]
[401491154,1768266638563,-500.0,0.00012063,2]
[401491155,1768266638574,-500.0,0.00012063,2]
[401491156,1768266638586,-500.0,0.00012063,2]
[401491157,1768266638595,-500.0,0.00012063,2]
[401491158,1768266638605,-500.0,0.00012063,2]
[401491159,1768266638615,-500.0,0.00012063,2]
[401491160,1768266638625,-500.0,0.00012063,2]
[401491161,1768266638634,-500.0,0.00012063,2]
[401491162,1768266638643,-500.0,0.00012063,2]
[401491163,1768266638652,-500.0,0.00012063,2]
[401491164,1768266638662,-500.0,0.00012063,2]
[401491165,1768266638671,-500.0,0.00012063,2]
[401491166,1768266638681,-500.0,0.00012063,2]
[401491167,1768266638690,-500.0,0.00012063,2]
[401491168,1768266638700,-500.0,0.00012063,2]
[401491169,1768266638709,-200.0,0.00012063,2]
[401491170,1768266638718,-500.0,0.00012063,2]
[401491171,1768266638728,-214.32301538,0.00012063,2]
[401491172,1768266638737,-151.0,0.000121,2]
[401491173,1768266638746,-151.0,0.000121,2]
[401491174,1768266638756,-151.0,0.000121,2]
[401491175,1768266638766,-151.0,0.000121,2]
[401491176,1768266638775,-151.0,0.000121,2]
[401491177,1768266638785,-151.0,0.000121,2]
[401491178,1768266638795,-151.0,0.000121,2]
[401491179,1768266638808,-151.0,0.000121,2]
[401491180,1768266638818,-151.0,0.000121,2]
[401491181,1768266638828,-151.0,0.000121,2]
[401491182,1768266638837,-151.0,0.000121,2]
[401491183,1768266638847,-151.0,0.000121,2]
[401491184,1768266638857,-151.0,0.000121,2]
[401491185,1768266638866,-151.0,0.000121,2]
[401491186,1768266638876,-151.0,0.000121,2]
[401491187,1768266638885,-151.0,0.000121,2]
[401491188,1768266638895,-151.0,0.000121,2]
[401491189,1768266638904,-151.0,0.000121,2]
[401491190,1768266638914,-161.32015771,0.000122,2]
[401491191,1768266639041,-705.27666732,0.00012258,2]
[401491192,1768266639051,-300.0,0.00012304,2]
[401491193,1768266639061,-300.0,0.00012304,2]
[401491194,1768266639071,-300.0,0.00012304,2]
[401491195,1768266639081,-300.0,0.00012304,2]
[401491196,1768266639091,-300.0,0.00012304,2]
[401491197,1768266639100,-300.0,0.00012304,2]
[401491198,1768266639109,-300.0,0.00012304,2]
[401491199,1768266639119,-300.0,0.00012304,2]
[401491200,1768266639128,-300.0,0.00012304,2]
[401491201,1768266639138,-300.0,0.00012304,2]
[401491202,1768266639148,-300.0,0.00012304,2]
[401491203,1768266639157,-300.0,0.00012304,2]
[401491204,1768266639167,-300.0,0.00012304,2]
[401491205,1768266639177,-300.0,0.00012304,2]
[401491206,1768266639187,-300.0,0.00012304,2]
[401491207,1768266639198,-302.0,0.00012329,2]
[401491208,1768266639208,-600.0,0.00012406,2]
[401491210,1768266639217,-1000.0,0.000128,2]
[401491211,1768266639227,-6095.52266178,0.000129,2]
[401491212,1768266639236,-7143.91308147,0.00013,2]
[401491213,1768266639245,-420.0,0.0001324,2]
[401491214,1768266639254,-350.06346044,0.00013271,2]
[401491215,1768266639264,-500.0,0.00013273,2]
[401491216,1768266639272,-500.0,0.00013273,2]